[Event "Mistrovství Čech mládeže 2023 - HD14"]
[Site "Harrachov, Czech Republic"]
[Date "2023.10.24"]
[Round "5.11"]
[White "Tejnor, Martin"]
[Black "Stefaniv, Vladislav"]
[Result "1-0"]
[TimeControl "90m + 30s"]
[WhiteElo "1418"]
[BlackElo "1566"]

1. e4 {[%clk 01:30:52]} {[%emt 00:00:07]} e6 {[%clk 01:30:57]} {[%emt
00:00:04]} 2. d4 {[%clk 01:30:44]} {[%emt 00:00:38]} d5 {[%clk 01:31:23]}
{[%emt 00:00:04]} 3. exd5 {[%clk 01:31:07]} {[%emt 00:00:07]} exd5 {[%clk
01:31:48]} {[%emt 00:00:04]} 4. Bd3 {[%clk 01:30:23]} {[%emt 00:01:14]} c5
{[%clk 01:32:08]} {[%emt 00:00:11]} 5. dxc5 {[%clk 01:25:46]} {[%emt 00:05:07]}
Bxc5 {[%clk 01:32:15]} {[%emt 00:00:23]} 6. Nf3 {[%clk 01:24:59]} {[%emt
00:01:17]} Nf6 {[%clk 01:30:19]} {[%emt 00:02:27]} 7. O-O {[%clk 01:24:07]}
{[%emt 00:01:22]} O-O {[%clk 01:29:44]} {[%emt 00:01:05]} 8. Bg5 {[%clk
01:23:23]} {[%emt 00:01:14]} Nc6 {[%clk 01:20:48]} {[%emt 00:09:26]} 9. Nc3
{[%clk 01:21:06]} {[%emt 00:02:47]} Be6 {[%clk 01:19:17]} {[%emt 00:02:00]} 10.
Qd2 {[%clk 01:17:46]} {[%emt 00:03:49]} Be7 {[%clk 01:02:09]} {[%emt 00:17:39]}
11. a3 {[%clk 01:14:35]} {[%emt 00:03:42]} a6 {[%clk 00:55:28]} {[%emt
00:07:11]} 12. Rad1 {[%clk 01:14:13]} {[%emt 00:00:52]} Qb6 {[%clk 00:48:43]}
{[%emt 00:07:12]} 13. Na4 {[%clk 01:10:48]} {[%emt 00:03:58]} Qc7 {[%clk
00:48:38]} {[%emt 00:00:34]} 14. Bf4 {[%clk 01:04:20]} {[%emt 00:06:59]} Bd6
{[%clk 00:42:38]} {[%emt 00:06:30]} 15. Bxd6 {[%clk 01:03:25]} {[%emt
00:01:25]} Qxd6 {[%clk 00:43:04]} {[%emt 00:00:04]} 16. Rfe1 {[%clk 01:03:19]}
{[%emt 00:00:35]} h6 {[%clk 00:40:32]} {[%emt 00:03:02]} 17. Nc3 {[%clk
01:03:22]} {[%emt 00:00:27]} Rfe8 {[%clk 00:38:32]} {[%emt 00:02:30]} 18. h3
{[%clk 01:03:06]} {[%emt 00:00:47]} Qc7 {[%clk 00:36:42]} {[%emt 00:02:20]} 19.
Bf1 {[%clk 00:48:43]} {[%emt 00:14:52]} Rad8 {[%clk 00:36:10]} {[%emt
00:01:01]} 20. Nd4 {[%clk 00:43:39]} {[%emt 00:05:35]} Bc8 {[%clk 00:26:06]}
{[%emt 00:10:34]} 21. Rxe8+ {[%clk 00:30:02]} {[%emt 00:14:07]} Rxe8 {[%clk
00:26:27]} {[%emt 00:00:09]} 22. Be2 {[%clk 00:29:34]} {[%emt 00:00:58]} Nxd4
{[%clk 00:15:29]} {[%emt 00:11:29]} 23. Qxd4 {[%clk 00:29:51]} {[%emt
00:00:12]} Ne4 {[%clk 00:13:35]} {[%emt 00:02:24]} 24. Nxe4 {[%clk 00:24:38]}
{[%emt 00:05:44]} dxe4 {[%clk 00:12:50]} {[%emt 00:01:15]} 25. c3 {[%clk
00:24:10]} {[%emt 00:00:58]} Bf5 {[%clk 00:08:36]} {[%emt 00:04:43]} 26. Bc4
{[%clk 00:23:11]} {[%emt 00:01:29]} Re7 {[%clk 00:04:59]} {[%emt 00:04:08]} 27.
Qd8+ {[%clk 00:22:24]} {[%emt 00:01:17]} Kh7 {[%clk 00:04:35]} {[%emt
00:00:53]} 28. Bb3 {[%clk 00:21:26]} {[%emt 00:01:29]} b6 {[%clk 00:00:46]}
{[%emt 00:04:19]} 29. Qxc7 {[%clk 00:21:36]} {[%emt 00:00:19]} Rxc7 {[%emt
00:00:05]} 30. Rd6 {[%clk 00:21:59]} {[%emt 00:00:05]} Rb7 {[%clk 00:00:48]}
{[%emt 00:00:56]} 31. Bd5 {[%clk 00:21:43]} {[%emt 00:00:46]} Rb8 {[%clk
00:00:48]} {[%emt 00:00:30]} 32. Bxf7 {[%clk 00:22:06]} {[%emt 00:00:08]} a5
{[%clk 00:00:37]} {[%emt 00:00:40]} 33. g4 {[%clk 00:20:30]} {[%emt 00:02:06]}
Bc8 {[%clk 00:00:49]} {[%emt 00:00:18]} 34. Rd8 {[%clk 00:20:50]} {[%emt
00:00:09]} Ra8 {[%clk 00:00:45]} {[%emt 00:00:34]} 35. Bd5 {[%clk 00:20:41]}
{[%emt 00:00:40]} Rb8 {[%clk 00:00:35]} {[%emt 00:00:40]} 36. Be6 {[%clk
00:20:59]} {[%emt 00:00:11]} 1-0

[Event "Mistrovství Čech mládeže 2023 - HD14"]
[Site "Harrachov, Czech Republic"]
[Date "2023.10.24"]
[Round "5.12"]
[White "Bludský, Hynek"]
[Black "Borecký, Andrej"]
[Result "1-0"]
[TimeControl "90m + 30s"]
[WhiteElo "1547"]
[BlackElo "1341"]

1. e4 {[%clk 01:30:56]} {[%emt 00:00:03]} e5 {[%clk 01:30:55]} {[%emt
00:00:06]} 2. Nf3 {[%clk 01:30:50]} {[%emt 00:00:36]} Nc6 {[%clk 01:31:18]}
{[%emt 00:00:07]} 3. d4 {[%clk 01:31:16]} {[%emt 00:00:04]} exd4 {[%clk
01:31:41]} {[%emt 00:00:07]} 4. Bc4 {[%clk 01:31:42]} {[%emt 00:00:03]} Nf6
{[%clk 01:31:57]} {[%emt 00:00:15]} 5. O-O {[%clk 01:32:06]} {[%emt 00:00:06]}
Nxe4 {[%clk 01:32:21]} {[%emt 00:00:06]} 6. Re1 {[%clk 01:32:32]} {[%emt
00:00:04]} d5 {[%clk 01:32:46]} {[%emt 00:00:05]} 7. Bxd5 {[%clk 01:32:57]}
{[%emt 00:00:04]} Qxd5 {[%clk 01:33:10]} {[%emt 00:00:07]} 8. Nc3 {[%clk
01:33:24]} {[%emt 00:00:03]} Qh5 {[%clk 01:33:32]} {[%emt 00:00:07]} 9. Nxe4
{[%clk 01:33:37]} {[%emt 00:00:17]} Be6 {[%clk 01:33:54]} {[%emt 00:00:08]} 10.
Bg5 {[%clk 01:33:22]} {[%emt 00:00:45]} Bd6 {[%clk 01:34:08]} {[%emt 00:00:16]}
11. Nxd6+ {[%clk 01:32:47]} {[%emt 00:01:05]} cxd6 {[%clk 01:34:29]} {[%emt
00:00:09]} 12. Bf4 {[%clk 01:32:37]} {[%emt 00:00:39]} Qd5 {[%clk 01:34:53]}
{[%emt 00:00:07]} 13. c3 {[%clk 01:31:23]} {[%emt 00:01:44]} Kd7 {[%clk
01:34:53]} {[%emt 00:00:30]} 14. Nxd4 {[%clk 01:26:58]} {[%emt 00:04:55]} Nxd4
{[%clk 01:35:08]} {[%emt 00:00:15]} 15. Qxd4 {[%clk 01:27:04]} {[%emt
00:00:24]} Qxd4 {[%clk 01:35:29]} {[%emt 00:00:09]} 16. cxd4 {[%clk 01:27:30]}
{[%emt 00:00:04]} Bd5 {[%clk 01:35:06]} {[%emt 00:00:53]} 17. b3 {[%clk
01:25:43]} {[%emt 00:02:17]} Rac8 {[%clk 01:32:25]} {[%emt 00:03:10]} 18. Re2
{[%clk 01:24:59]} {[%emt 00:01:14]} Rhe8 {[%clk 01:27:43]} {[%emt 00:05:13]} 19.
Rae1 {[%clk 01:24:50]} {[%emt 00:00:39]} Rxe2 {[%clk 01:26:43]} {[%emt
00:01:29]} 20. Rxe2 {[%clk 01:25:10]} {[%emt 00:00:11]} f6 {[%clk 01:24:03]}
{[%emt 00:03:10]} 21. h4 {[%clk 01:23:34]} {[%emt 00:02:06]} b6 {[%clk
01:13:03]} {[%emt 00:11:31]} 22. f3 {[%clk 01:22:13]} {[%emt 00:01:50]} Rc3
{[%clk 01:06:47]} {[%emt 00:06:46]} 23. Kf2 {[%clk 01:21:11]} {[%emt 00:01:32]}
Rd3 {[%clk 01:04:46]} {[%emt 00:02:31]} 24. Be3 {[%clk 01:18:19]} {[%emt
00:03:22]} h6 {[%clk 00:59:11]} {[%emt 00:06:06]} 25. Rc2 {[%clk 01:15:08]}
{[%emt 00:03:40]} Rd1 {[%clk 00:56:38]} {[%emt 00:03:03]} 26. Rc1 {[%clk
01:12:28]} {[%emt 00:03:10]} Rxc1 {[%clk 00:56:52]} {[%emt 00:00:17]} 27. Bxc1
{[%clk 01:12:54]} {[%emt 00:00:04]} g5 {[%clk 00:56:00]} {[%emt 00:01:21]} 28.
Kg3 {[%clk 01:12:15]} {[%emt 00:01:08]} Ke6 {[%clk 00:55:35]} {[%emt 00:00:56]}
29. Kg4 {[%clk 01:10:35]} {[%emt 00:02:09]} a5 {[%clk 00:53:08]} {[%emt
00:02:58]} 30. Bd2 {[%clk 01:03:20]} {[%emt 00:07:44]} a4 {[%clk 00:47:37]}
{[%emt 00:06:02]} 31. bxa4 {[%clk 01:02:30]} {[%emt 00:01:20]} Bxa2 {[%clk
00:47:59]} {[%emt 00:00:08]} 32. a5 {[%clk 01:00:03]} {[%emt 00:02:58]} bxa5
{[%clk 00:48:22]} {[%emt 00:00:07]} 33. Bxa5 {[%clk 01:00:26]} {[%emt
00:00:07]} Bd5 {[%clk 00:47:42]} {[%emt 00:01:10]} 34. Bb4 {[%clk 00:53:40]}
{[%emt 00:07:16]} Bc6 {[%clk 00:47:03]} {[%emt 00:01:09]} 35. Kh5 {[%clk
00:49:45]} {[%emt 00:04:25]} Bb7 {[%clk 00:45:32]} {[%emt 00:02:01]} 36. Be1
{[%clk 00:48:09]} {[%emt 00:02:05]} Ba6 {[%clk 00:44:08]} {[%emt 00:01:55]} 37.
Kxh6 {[%clk 00:08:08]} {[%emt 00:40:32]} Bf1 {[%clk 00:43:53]} {[%emt
00:00:44]} 38. g3 {[%clk 00:08:24]} {[%emt 00:00:13]} Be2 {[%clk 00:43:38]}
{[%emt 00:00:46]} 39. h5 {[%clk 00:08:38]} {[%emt 00:00:16]} Bxf3 {[%clk
00:43:13]} {[%emt 00:00:56]} 40. Kg6 {[%clk 00:08:55]} {[%emt 00:00:13]} Be4
{[%clk 00:42:44]} {[%emt 00:00:58]} 41. Kg7 {[%clk 00:09:06]} {[%emt 00:00:19]}
f5 {[%clk 00:41:03]} {[%emt 00:02:12]} 42. Bd2 {[%clk 00:09:01]} {[%emt
00:00:35]} f4 {[%clk 00:39:15]} {[%emt 00:02:19]} 43. gxf4 {[%clk 00:08:56]}
{[%emt 00:00:35]} g4 {[%clk 00:39:34]} {[%emt 00:00:10]} 44. Be3 {[%clk
00:08:48]} {[%emt 00:00:37]} g3 {[%clk 00:38:43]} {[%emt 00:01:22]} 45. h6
{[%clk 00:08:17]} {[%emt 00:01:01]} g2 {[%clk 00:38:50]} {[%emt 00:00:23]} 46.
h7 {[%clk 00:08:25]} {[%emt 00:00:22]} Bxh7 {[%clk 00:39:12]} {[%emt 00:00:08]}
47. Kxh7 {[%clk 00:08:53]} {[%emt 00:00:02]} Kf5 {[%clk 00:39:26]} {[%emt
00:00:17]} 48. Kg7 {[%clk 00:09:04]} {[%emt 00:00:18]} Ke4 {[%clk 00:39:37]}
{[%emt 00:00:19]} 49. Bg1 {[%clk 00:09:27]} {[%emt 00:00:07]} Kxf4 {[%clk
00:38:50]} {[%emt 00:01:17]} 50. Kf6 {[%clk 00:09:50]} {[%emt 00:00:07]} d5
{[%clk 00:38:54]} {[%emt 00:00:27]} 51. Ke6 {[%clk 00:10:09]} {[%emt 00:00:11]}
Ke4 {[%clk 00:39:16]} {[%emt 00:00:09]} 52. Kd6 {[%clk 00:10:34]} 1-0

[Event "Mistrovství Čech mládeže 2023 - HD14"]
[Site "Harrachov, Czech Republic"]
[Date "2023.10.24"]
[Round "5.13"]
[White "Kravchenko, Andrey"]
[Black "Stibor, Ondřej"]
[Result "1-0"]
[TimeControl "90m + 30s"]
[WhiteElo "1541"]
[BlackElo "1170"]

1. d4 {[%clk 01:30:59]} d5 {[%clk 01:30:54]} {[%emt 00:00:06]} 2. c4 {[%clk
01:31:26]} {[%emt 00:00:03]} e6 {[%clk 01:31:21]} {[%emt 00:00:03]} 3. g3
{[%clk 01:31:49]} {[%emt 00:00:06]} Nf6 {[%clk 01:31:39]} {[%emt 00:00:12]} 4.
Nf3 {[%clk 01:32:14]} {[%emt 00:00:05]} Nbd7 {[%clk 01:31:43]} {[%emt
00:00:27]} 5. Bg2 {[%clk 01:32:31]} {[%emt 00:00:12]} c6 {[%clk 01:29:17]}
{[%emt 00:02:57]} 6. O-O {[%clk 01:32:54]} {[%emt 00:00:07]} Be7 {[%clk
01:29:27]} {[%emt 00:00:20]} 7. Nc3 {[%clk 01:33:16]} {[%emt 00:00:07]} O-O
{[%clk 01:29:47]} {[%emt 00:00:10]} 8. Qc2 {[%clk 01:33:30]} {[%emt 00:00:15]}
Re8 {[%clk 01:29:22]} {[%emt 00:00:57]} 9. Rd1 {[%clk 01:33:25]} {[%emt
00:00:35]} b6 {[%clk 01:28:19]} {[%emt 00:01:33]} 10. e4 {[%clk 01:33:44]}
{[%emt 00:00:10]} dxe4 {[%clk 01:27:33]} {[%emt 00:01:17]} 11. Nxe4 {[%clk
01:34:06]} {[%emt 00:00:08]} Bb7 {[%clk 01:27:59]} {[%emt 00:00:04]} 12. Nc3
{[%clk 01:30:19]} {[%emt 00:04:16]} Qc7 {[%clk 01:25:49]} {[%emt 00:02:40]} 13.
Bf4 {[%emt 00:00:33]} Bd6 {[%clk 01:26:00]} {[%emt 00:00:17]} 14. Bxd6 {[%clk
01:26:51]} {[%emt 00:03:57]} Qxd6 {[%clk 01:26:19]} {[%emt 00:00:11]} 15. Ng5
{[%clk 01:23:00]} {[%emt 00:04:19]} h6 {[%clk 01:24:23]} {[%emt 00:02:27]} 16.
Nge4 {[%clk 01:23:14]} {[%emt 00:00:15]} Nxe4 {[%clk 01:24:37]} {[%emt
00:00:17]} 17. Nxe4 {[%clk 01:23:37]} {[%emt 00:00:08]} Qe7 {[%clk 01:24:12]}
{[%emt 00:00:55]} 18. c5 {[%clk 01:22:11]} {[%emt 00:01:55]} Nf6 {[%clk
01:15:54]} {[%emt 00:08:48]} 19. Nd6 {[%clk 01:22:17]} {[%emt 00:00:24]} Red8
{[%clk 01:15:59]} {[%emt 00:00:25]} 20. Rac1 {[%clk 01:13:35]} {[%emt
00:09:09]} Ne8 {[%clk 01:13:14]} {[%emt 00:03:18]} 21. Nxb7 {[%clk 01:08:30]}
{[%emt 00:05:35]} Qxb7 {[%clk 01:13:17]} {[%emt 00:00:28]} 22. cxb6 {[%clk
01:07:38]} {[%emt 00:01:22]} Qxb6 {[%clk 01:12:33]} {[%emt 00:01:14]} 23. Qxc6
{[%clk 00:56:36]} {[%emt 00:11:32]} Qxb2 {[%clk 00:59:25]} {[%emt 00:13:38]} 24.
Qa4 {[%clk 00:55:16]} {[%emt 00:01:48]} Rac8 {[%clk 00:56:39]} {[%emt
00:03:18]} 25. Rb1 {[%clk 00:49:43]} {[%emt 00:06:02]} Qe2 {[%clk 00:52:28]}
{[%emt 00:04:41]} 26. Re1 {[%clk 00:47:39]} {[%emt 00:02:32]} Qc4 {[%clk
00:47:46]} {[%emt 00:05:15]} 27. Rb4 {[%clk 00:34:31]} {[%emt 00:13:33]} Qc3
{[%clk 00:44:18]} {[%emt 00:04:02]} 28. Reb1 {[%clk 00:33:51]} {[%emt
00:01:09]} Nf6 {[%clk 00:42:11]} {[%emt 00:02:40]} 29. Qxa7 {[%clk 00:31:43]}
{[%emt 00:02:37]} Qd2 {[%clk 00:39:06]} {[%emt 00:03:34]} 30. h3 {[%emt
00:02:54]} Rc2 {[%emt 00:04:17]} 31. d5 {[%emt 00:02:00]} Rxa2 {[%emt
00:06:42]} 32. Qb6 {[%emt 00:03:54]} Re8 {[%emt 00:03:44]} 33. d6 {[%emt
00:04:49]} Kh7 {[%clk 00:28:19]} {[%emt 00:00:29]} 34. R4b2 {[%clk 00:16:26]}
{[%emt 00:01:45]} Rxb2 {[%clk 00:27:33]} {[%emt 00:01:17]} 35. Rxb2 {[%clk
00:16:02]} {[%emt 00:00:54]} Qc1+ {[%clk 00:26:43]} {[%emt 00:01:20]} 36. Kh2
{[%clk 00:16:18]} {[%emt 00:00:14]} Qc8 {[%clk 00:26:46]} {[%emt 00:00:28]} 37.
Rd2 {[%clk 00:15:01]} {[%emt 00:01:47]} Qb8 {[%clk 00:20:20]} {[%emt 00:06:56]}
38. Qd4 {[%clk 00:13:09]} {[%emt 00:02:19]} Rd8 {[%clk 00:20:19]} {[%emt
00:00:33]} 39. Qc5 {[%clk 00:13:09]} {[%emt 00:00:30]} Ne8 {[%clk 00:19:48]}
{[%emt 00:01:03]} 40. d7 {[%clk 00:13:04]} {[%emt 00:00:35]} Nf6 {[%clk
00:20:13]} {[%emt 00:00:04]} 41. Bc6 {[%clk 00:11:45]} {[%emt 00:01:49]} Qc7
{[%clk 00:20:10]} {[%emt 00:00:35]} 42. Be4+ {[%clk 00:12:05]} {[%emt
00:00:08]} 1-0

[Event "Mistrovství Čech mládeže 2023 - HD14"]
[Site "Harrachov, Czech Republic"]
[Date "2023.10.24"]
[Round "5.14"]
[White "Denko, Otakar"]
[Black "Seidl, Václav"]
[Result "0-1"]
[TimeControl "90m + 30s"]
[WhiteElo "1417"]
[BlackElo "1478"]

1. d4 {[%clk 01:30:52]} {[%emt 00:00:07]} d5 {[%clk 01:30:56]} {[%emt
00:00:04]} 2. Bf4 {[%clk 01:31:14]} {[%emt 00:00:08]} Nf6 {[%clk 01:31:19]}
{[%emt 00:00:07]} 3. Nf3 {[%clk 01:31:23]} {[%emt 00:00:21]} c5 {[%clk
01:31:42]} {[%emt 00:00:07]} 4. e3 {[%clk 01:31:07]} {[%emt 00:00:46]} Nc6
{[%clk 01:32:07]} {[%emt 00:00:05]} 5. c3 {[%clk 01:30:23]} {[%emt 00:01:13]}
Qb6 {[%clk 01:32:29]} {[%emt 00:00:08]} 6. Qc2 {[%clk 01:28:19]} {[%emt
00:02:35]} g6 {[%clk 01:30:14]} {[%emt 00:02:44]} 7. Nbd2 {[%clk 01:27:36]}
{[%emt 00:01:13]} c4 {[%clk 01:28:47]} {[%emt 00:01:57]} 8. Be2 {[%clk
01:26:03]} {[%emt 00:02:03]} Bf5 {[%clk 01:28:19]} {[%emt 00:00:58]} 9. Qc1
{[%clk 01:25:19]} {[%emt 00:01:15]} Bg7 {[%clk 01:27:03]} {[%emt 00:01:45]} 10.
Ne5 {[%clk 01:23:59]} {[%emt 00:01:50]} Nxe5 {[%clk 01:24:43]} {[%emt
00:02:50]} 11. Bxe5 {[%clk 01:24:10]} {[%emt 00:00:19]} O-O {[%clk 01:24:43]}
{[%emt 00:00:31]} 12. O-O {[%clk 01:22:41]} {[%emt 00:01:59]} Ne4 {[%clk
01:22:17]} {[%emt 00:02:56]} 13. Bxg7 {[%clk 01:21:07]} {[%emt 00:02:04]} Kxg7
{[%clk 01:22:06]} {[%emt 00:00:41]} 14. Nxe4 {[%clk 01:20:48]} {[%emt
00:00:49]} Bxe4 {[%clk 01:22:21]} {[%emt 00:00:15]} 15. Qd2 {[%clk 01:19:08]}
{[%emt 00:02:10]} a5 {[%clk 01:19:56]} {[%emt 00:02:55]} 16. a4 {[%clk
01:14:44]} {[%emt 00:04:55]} h6 {[%clk 01:15:07]} {[%emt 00:05:18]} 17. Bd1
{[%clk 01:14:04]} {[%emt 00:01:11]} Rfb8 {[%clk 01:13:08]} {[%emt 00:02:28]} 18.
Ra2 {[%clk 01:12:32]} {[%emt 00:02:02]} Qc6 {[%clk 01:10:47]} {[%emt 00:02:49]}
19. Bc2 {[%clk 01:10:10]} {[%emt 00:02:55]} Bxc2 {[%clk 01:09:10]} {[%emt
00:02:06]} 20. Qxc2 {[%clk 01:10:28]} {[%emt 00:00:12]} b5 {[%clk 01:09:02]}
{[%emt 00:00:38]} 21. axb5 {[%clk 01:09:04]} {[%emt 00:01:54]} Qxb5 {[%clk
01:07:03]} {[%emt 00:02:29]} 22. Rfa1 {[%clk 01:08:06]} {[%emt 00:01:27]} Qb3
{[%clk 01:03:12]} {[%emt 00:04:22]} 23. Qxb3 {[%clk 01:06:58]} {[%emt
00:01:38]} Rxb3 {[%clk 01:03:27]} {[%emt 00:00:16]} 24. g3 {[%clk 01:07:16]}
{[%emt 00:00:12]} Rab8 {[%clk 01:02:06]} {[%emt 00:01:50]} 25. Rxa5 {[%clk
01:02:35]} {[%emt 00:05:12]} e6 {[%clk 01:02:16]} {[%emt 00:00:19]} 26. R5a2
{[%clk 01:02:30]} {[%emt 00:00:35]} Rxb2 {[%clk 01:02:31]} {[%emt 00:00:15]} 27.
Rxb2 {[%clk 01:02:55]} {[%emt 00:00:06]} Rxb2 {[%clk 01:02:53]} {[%emt
00:00:07]} 28. Rc1 {[%clk 01:03:20]} {[%emt 00:00:05]} Kf6 {[%clk 01:02:26]}
{[%emt 00:00:56]} 29. Kg2 {[%clk 01:03:14]} {[%emt 00:00:33]} Kf5 {[%clk
01:02:30]} {[%emt 00:00:30]} 30. Kf3 {[%clk 01:02:45]} {[%emt 00:00:59]} g5
{[%clk 01:00:55]} {[%emt 00:02:05]} 31. g4+ {[%clk 01:01:12]} {[%emt 00:02:03]}
Kg6 {[%clk 01:00:08]} {[%emt 00:01:15]} 32. Kg3 {[%clk 01:00:24]} {[%emt
00:01:19]} f5 {[%clk 00:58:08]} {[%emt 00:02:29]} 33. gxf5+ {[%clk 00:58:05]}
{[%emt 00:02:49]} Kxf5 {[%clk 00:57:17]} {[%emt 00:01:21]} 34. f4 {[%clk
00:52:33]} {[%emt 00:06:03]} gxf4+ {[%clk 00:55:32]} {[%emt 00:02:14]} 35. exf4
{[%clk 00:52:47]} {[%emt 00:00:17]} Rd2 {[%clk 00:55:17]} {[%emt 00:00:42]} 36.
Rf1 {[%clk 00:48:43]} {[%emt 00:04:36]} Rd3+ {[%clk 00:53:12]} {[%emt
00:02:34]} 37. Rf3 {[%clk 00:49:07]} {[%emt 00:00:07]} Ke4 {[%clk 00:53:23]}
{[%emt 00:00:18]} 38. Rxd3 {[%clk 00:49:13]} {[%emt 00:00:25]} Kxd3 {[%clk
00:53:12]} {[%emt 00:00:41]} 39. Kf3 {[%clk 00:49:00]} {[%emt 00:00:43]} Kxc3
{[%clk 00:53:13]} {[%emt 00:00:28]} 40. Ke3 {[%clk 00:49:24]} {[%emt 00:00:05]}
Kb2 {[%clk 00:52:40]} {[%emt 00:01:04]} 0-1

[Event "Mistrovství Čech mládeže 2023 - HD14"]
[Site "Harrachov, Czech Republic"]
[Date "2023.10.24"]
[Round "5.15"]
[White "Sboev, Kirill"]
[Black "Ugrenovich, Jaroslav"]
[Result "1/2-1/2"]
[TimeControl "90m + 30s"]
[WhiteElo "1556"]
[BlackElo "1277"]

1. d4 {[%clk 01:30:57]} {[%emt 00:00:01]} e6 {[%clk 01:30:51]} {[%emt
00:00:09]} 2. c4 {[%clk 01:31:21]} {[%emt 00:00:06]} d5 {[%clk 01:31:17]}
{[%emt 00:00:04]} 3. Nc3 {[%clk 01:31:44]} {[%emt 00:00:07]} c5 {[%clk
01:31:27]} {[%emt 00:00:21]} 4. Nf3 {[%clk 01:31:52]} {[%emt 00:00:22]} Nc6
{[%clk 01:31:30]} {[%emt 00:00:27]} 5. g3 {[%clk 01:32:02]} {[%emt 00:00:21]}
dxc4 {[%clk 01:30:48]} {[%emt 00:01:12]} 6. e3 {[%clk 01:29:04]} {[%emt
00:03:27]} Nf6 {[%clk 01:29:56]} {[%emt 00:01:22]} 7. dxc5 {[%clk 01:28:50]}
{[%emt 00:00:44]} Qxd1+ {[%clk 01:29:38]} {[%emt 00:00:48]} 8. Nxd1 {[%clk
01:29:12]} {[%emt 00:00:08]} Bxc5 {[%clk 01:19:47]} {[%emt 00:10:21]} 9. Bxc4
{[%clk 01:29:30]} {[%emt 00:00:12]} O-O {[%clk 01:20:00]} {[%emt 00:00:17]} 10.
a3 {[%clk 01:28:44]} {[%emt 00:01:16]} a5 {[%clk 01:16:46]} {[%emt 00:03:43]}
11. Nc3 {[%clk 01:27:48]} {[%emt 00:01:26]} Rb8 {[%clk 01:12:55]} {[%emt
00:04:21]} 12. O-O {[%clk 01:24:36]} {[%emt 00:03:42]} Rd8 {[%clk 01:12:53]}
{[%emt 00:00:32]} 13. e4 {[%clk 01:22:33]} {[%emt 00:02:34]} e5 {[%clk
01:12:18]} {[%emt 00:01:06]} 14. Bg5 {[%clk 01:19:36]} {[%emt 00:03:27]} Be7
{[%clk 01:02:51]} {[%emt 00:09:57]} 15. Rad1 {[%clk 01:18:16]} {[%emt
00:01:50]} Bg4 {[%clk 01:02:17]} {[%emt 00:01:04]} 16. Rxd8+ {[%clk 01:15:01]}
{[%emt 00:03:45]} Rxd8 {[%clk 01:02:38]} {[%emt 00:00:09]} 17. Kg2 {[%clk
01:09:22]} {[%emt 00:06:09]} h6 {[%clk 00:55:44]} {[%emt 00:07:24]} 18. Bxf6
{[%emt 00:00:52]} Bxf6 {[%clk 00:56:02]} {[%emt 00:00:09]} 19. Nd5 {[%clk
01:07:56]} {[%emt 00:01:37]} Bxf3+ {[%clk 00:55:37]} {[%emt 00:00:55]} 20. Kxf3
{[%clk 01:08:07]} {[%emt 00:00:19]} Nd4+ {[%clk 00:56:00]} {[%emt 00:00:07]} 21.
Kg2 {[%clk 01:07:58]} {[%emt 00:00:38]} Rc8 {[%clk 00:54:37]} {[%emt 00:01:54]}
22. Nxf6+ {[%clk 01:07:40]} {[%emt 00:00:48]} gxf6 {[%clk 00:54:59]} {[%emt
00:00:08]} 23. Bd3 {[%clk 01:05:59]} {[%emt 00:02:11]} Kg7 {[%clk 00:52:17]}
{[%emt 00:03:12]} 24. Rb1 {[%clk 00:58:44]} {[%emt 00:07:45]} Nb3 {[%clk
00:52:02]} {[%emt 00:00:44]} 25. Re1 {[%clk 00:55:13]} {[%emt 00:04:01]} Rc7
{[%clk 00:45:53]} {[%emt 00:06:40]} 26. Kf1 {[%clk 00:48:16]} {[%emt 00:07:27]}
Nd2+ {[%clk 00:43:08]} {[%emt 00:03:15]} 27. Ke2 {[%clk 00:47:50]} {[%emt
00:00:56]} Nb3 {[%clk 00:42:55]} {[%emt 00:00:42]} 28. Ke3 {[%clk 00:46:00]}
{[%emt 00:02:20]} Kf8 {[%clk 00:42:44]} {[%emt 00:00:42]} 29. f4 {[%clk
00:45:12]} {[%emt 00:01:17]} Ke7 {[%clk 00:42:20]} {[%emt 00:00:55]} 30. Rd1
{[%clk 00:41:03]} {[%emt 00:04:39]} Nd4 {[%clk 00:41:48]} {[%emt 00:01:02]} 31.
b4 {[%clk 00:32:59]} {[%emt 00:08:34]} axb4 {[%clk 00:41:29]} {[%emt 00:00:49]}
32. axb4 {[%clk 00:33:18]} {[%emt 00:00:11]} Nc2+ {[%clk 00:41:51]} {[%emt
00:00:09]} 33. Bxc2 {[%clk 00:33:25]} {[%emt 00:00:23]} Rxc2 {[%clk 00:42:14]}
{[%emt 00:00:07]} 34. Rd2 {[%clk 00:32:40]} {[%emt 00:01:14]} Rc3+ {[%clk
00:41:58]} {[%emt 00:00:46]} 35. Rd3 {[%clk 00:32:19]} {[%emt 00:00:52]} Rc2
{[%clk 00:42:03]} {[%emt 00:00:25]} 36. Rd2 {[%clk 00:32:05]} {[%emt 00:00:43]}
Rc3+ {[%clk 00:42:18]} {[%emt 00:00:15]} 37. Rd3 {[%clk 00:32:27]} {[%emt
00:00:09]} 1/2-1/2